fUSD/lending_fUSD_20251031
["ID","MTS","AMOUNT","RATE_DAILY","PERIOD"]
[392728756,1761876639270,-151.0,0.00014991,2]
[392728757,1761876639280,-151.0,0.00014991,2]
[392728758,1761876639289,-151.0,0.00014991,2]
[392728759,1761876639298,-151.0,0.00014991,2]
[392728760,1761876639308,-151.0,0.00014991,2]
[392728761,1761876639317,-151.0,0.00014991,2]
[392728762,1761876639326,-151.0,0.00014991,2]
[392728763,1761876639335,-200.0,0.00014991,2]
[392728764,1761876639344,-151.0,0.00014991,2]
[392728765,1761876639354,-208.99046891,0.00014991,2]
[392728766,1761876639364,-504.7716364,0.00014991,2]
[392728767,1761876639373,-202.27601375,0.00014991,2]
[392728768,1761876639382,-151.0,0.00014997,2]
[392728769,1761876639394,-500.0,0.00014999,2]
[392728770,1761876639405,-500.0,0.00014999,2]
[392728771,1761876639415,-267.35698253,0.00014999,2]
[392728772,1761876639424,-217.50414476,0.00014999,2]
[392728773,1761876639435,-150.0,0.00014999,2]
[392728774,1761876639445,-1395.514,0.00014999,2]
[392728775,1761876639456,-500.0,0.00014999,2]
[392728776,1761876639465,-500.0,0.00014999,2]
[392728777,1761876639477,-551.87182233,0.00014999,2]
[392728778,1761876639486,-500.0,0.00014999,2]
[392728779,1761876639495,-500.0,0.00014999,2]
[392728780,1761876639505,-500.0,0.00014999,2]
[392728781,1761876639514,-500.0,0.00014999,2]
[392728782,1761876639523,-500.0,0.00014999,2]
[392728783,1761876639533,-500.0,0.00014999,2]
[392728784,1761876639542,-184.66868516,0.00014999,2]
[392728785,1761876639551,-155.661,0.00014999,2]
[392728786,1761876639560,-670.84822584,0.00014999,2]
[392728787,1761876639569,-3257484.35194172,0.00015,2]
[392728788,1761876640023,-14362.35382039,0.00015,2]
[392728789,1761876640257,-1482082.05507778,0.00015,2]
[392728790,1761876640419,-2253.5073968,0.00015,2]
[392728803,1761876646568,-276.46873019,0.00015,2]
[392728815,1761876911519,-432.55526108,0.00013699,2]
[392728834,1761877057632,193.77,7.116e-05,2]
[392728868,1761877436384,-63.61473892,0.00013699,2]
[392728869,1761877436410,-105.96785243,0.00013699,2]
[392728870,1761877438505,-297.69538521,0.00013699,2]
[392728872,1761877510925,150.0,0.00013488,2]
[392728873,1761877517672,216.14335398,0.00013488,2]
[392728874,1761877518010,172.73384628,0.00013488,2]
[392728875,1761877531101,163.84395022,0.00013488,2]
[392728880,1761877682567,567.31684157,0.000315,120]
[392728906,1761877831438,-96.33676236,0.00013699,2]
[392728907,1761877831448,-250.0,0.00013825,2]
[392728908,1761877831458,-219.6,0.00013938,2]
[392728909,1761877831467,-503.04,0.00013952,2]
[392728910,1761877831476,-500.0,0.00013973,2]
[392728911,1761877831486,-150.0,0.00013987,2]
[392728912,1761877831495,-2888.95,0.00014218,2]
[392728913,1761877831504,-500.0,0.00014247,2]
[392728914,1761877831514,-150.0,0.00014487,2]
[392728915,1761877831523,-500.0,0.00014521,2]
[392728916,1761877831532,-155.53931891,0.000147,2]
[392728917,1761877831541,-829.58264631,0.000147,2]
[392728918,1761877831550,-1411.4796264,0.000147,2]
[392728919,1761877831559,-219.6,0.00014712,2]
[392728920,1761877831568,-1200.0,0.00014721,2]
[392728921,1761877831577,-829.5826463,0.00014722,2]
[392728922,1761877831587,-829.5826463,0.00014744,2]
[392728923,1761877831596,-300.0,0.00014766,2]
[392728924,1761877831605,-300.0,0.00014766,2]
[392728925,1761877831614,-829.5826463,0.00014767,2]
[392728926,1761877831623,-500.0,0.00014773,2]
[392728927,1761877831632,-500.0,0.00014773,2]
[392728928,1761877831641,-500.0,0.00014773,2]
[392728929,1761877831650,-500.0,0.00014773,2]
[392728930,1761877831659,-504.07425091,0.00014773,2]
[392728931,1761877831668,-575.61460109,0.00014773,2]
[392728932,1761877831677,-500.0,0.00014773,2]
[392728933,1761877831687,-500.0,0.00014773,2]
[392728934,1761877831696,-500.0,0.00014773,2]
[392728935,1761877831706,-506.07584624,0.00014773,2]
[392728936,1761877831715,-500.0,0.00014773,2]
[392728937,1761877831724,-504.23129397,0.00014773,2]
[392728938,1761877831733,-500.0,0.00014773,2]
[392728939,1761877831746,-829.5826463,0.00014789,2]
[392728940,1761877831755,-500.0,0.00014795,2]
[392728941,1761877831764,-296.67,0.00014796,2]
[392728942,1761877831773,-150.0,0.00014798,2]
[392728943,1761877831783,-245.30836504,0.00014799,2]
[392728944,1761877831792,-621.10383745,0.00014799,2]
[392728945,1761877831801,-500.0,0.00014799,2]
[392728946,1761877831811,-500.0,0.00014799,2]
[392728947,1761877831822,-160.24505699,0.00014799,2]
[392728948,1761877831831,-408.36332358,0.00014799,2]
[392728949,1761877831840,-500.0,0.00014799,2]
[392728950,1761877831850,-500.0,0.00014799,2]
[392728951,1761877831859,-500.0,0.00014799,2]
[392728953,1761877831868,-500.0,0.00014799,2]
[392728954,1761877831877,-497.29165532,0.00014799,2]
[392728955,1761877831885,-500.0,0.00014799,2]
[392728956,1761877831895,-500.0,0.00014799,2]
[392728957,1761877831905,-500.0,0.00014799,2]
[392728958,1761877831914,-500.0,0.00014799,2]
[392728959,1761877831923,-500.0,0.00014799,2]
[392728960,1761877831932,-500.0,0.00014799,2]
[392728961,1761877831941,-500.0,0.00014799,2]
[392728962,1761877831951,-11927.80969497,0.000148,2]
[392728963,1761877831963,-830.16032389,0.000148,2]
[392728964,1761877831974,-327.4,0.000148,2]
[392728965,1761877837493,-2195.40310279,0.000148,2]
[392728966,1761877837549,-378178.18887835,0.000148,2]
[392728967,1761877837559,-270.784,0.000148,2]
[392728968,1761877837568,-155.5393189,0.000148,2]
[392728969,1761877837578,-829.5826463,0.00014811,2]
[392728970,1761877837588,-829.5826463,0.00014833,2]
[392728971,1761877837599,-1413.20842,0.0001485,2]
[392728972,1761877837608,-829.5826463,0.00014856,2]
[392728973,1761877837618,-829.5826463,0.00014878,2]
[392728974,1761877837627,-360.16991195,0.000149,2]
[392728975,1761877837637,-155.5393189,0.000149,2]
[392728976,1761877837646,-829.5826463,0.000149,2]
[392728977,1761877837656,-448.3888554,0.000149,2]
[392728978,1761877837666,-502.2695,0.00014959,2]
[392728979,1761877837675,-500.0,0.00014973,2]
[392728980,1761877837685,-500.0,0.00014973,2]
[392728981,1761877837695,-500.0,0.00014973,2]
[392728982,1761877837704,-500.0,0.00014973,2]
[392728983,1761877837714,-500.0,0.00014973,2]
[392728984,1761877837723,-161.03609932,0.00014973,2]
[392728985,1761877837732,-501.83517664,0.00014973,2]
[392728986,1761877837745,-500.75904731,0.00014973,2]
[392728987,1761877837755,-500.0,0.00014973,2]
[392728988,1761877837765,-500.0,0.00014973,2]
[392728989,1761877837775,-500.0,0.00014973,2]
[392728990,1761877837785,-500.0,0.00014973,2]
[392728991,1761877837795,-500.0,0.00014973,2]
[392728992,1761877837804,-504.84590389,0.00014973,2]
[392728993,1761877837815,-500.0,0.00014973,2]
[392728994,1761877837824,-500.0,0.00014973,2]
[392728995,1761877837834,-431.50167342,0.00014973,2]
[392728996,1761877837843,-500.0,0.00014973,2]
[392728997,1761877837852,-500.0,0.00014973,2]
[392728998,1761877837862,-500.0,0.00014973,2]
[392728999,1761877837871,-500.0,0.00014973,2]
[392729000,1761877837880,-500.0,0.00014973,2]
[392729001,1761877837889,-164.34626945,0.00014973,2]
[392729002,1761877837899,-500.0,0.00014973,2]
[392729003,1761877837908,-503.33264037,0.00014973,2]
[392729004,1761877837918,-995.55,0.00014973,2]
[392729005,1761877837927,-150.0,0.00014973,2]
[392729006,1761877837936,-150.0,0.00014973,2]
[392729007,1761877837947,-150.0,0.00014973,2]
[392729008,1761877837956,-150.0,0.00014973,2]
[392729009,1761877837966,-150.0,0.00014973,2]
[392729010,1761877837975,-150.0,0.00014973,2]
[392729011,1761877837985,-150.0,0.00014973,2]
[392729012,1761877837994,-500.0,0.00014973,2]
[392729013,1761877838003,-500.0,0.00014973,2]
[392729014,1761877838013,-513.19801458,0.00014985,2]
[392729015,1761877838022,-179.20538015,0.00014986,2]
[392729016,1761877838032,-9178.14,0.0001499,2]
[392729017,1761877838042,-1583.475,0.00014991,2]
[392729018,1761877838052,-150.0,0.00014991,2]
[392729019,1761877838062,-150.0,0.00014991,2]
[392729020,1761877838072,-500.0,0.00014991,2]
[392729021,1761877838081,-151.0,0.00014991,2]
[392729022,1761877838090,-282.08047539,0.00014991,2]
[392729023,1761877838099,-301.80824379,0.00014991,2]
[392729024,1761877838109,-202.44182118,0.00014991,2]
[392729025,1761877838119,-202.78388391,0.00014991,2]
[392729026,1761877838129,-208.75050563,0.00014991,2]
[392729027,1761877838138,-200.0,0.00014991,2]
[392729028,1761877838147,-151.0,0.00014997,2]
[392729029,1761877838157,-500.0,0.00014999,2]
[392729030,1761877838166,-557.57094043,0.00014999,2]
[392729031,1761877838176,-500.0,0.00014999,2]
[392729032,1761877838185,-556.63917551,0.00014999,2]
[392729033,1761877838194,-670.84822584,0.00014999,2]
[392729034,1761877838204,-737542.42124002,0.00015,2]
[392729035,1761877838213,-1391409.42275269,0.00015,2]
[392729036,1761877838223,-305.15816482,0.00015,2]
[392729037,1761877838232,-163.30403015,0.00015,2]
[392729038,1761877838241,-5036.8532463,0.00015,2]
[392729039,1761877838251,-161.3866578,0.00015,2]
[392729040,1761877838259,-22977.4991086,0.00015,2]
[392729041,1761877838269,-18698.5946572,0.00015,2]
[392729042,1761877838278,-29886.5362486,0.00015,2]
[392729043,1761877838287,-3089.8965853,0.00015,2]
[392729044,1761877838297,-1000.0,0.00015,2]
[392729045,1761877838306,-546.24391219,0.00015,2]
[392729046,1761877838315,-299.12207577,0.00015,2]
[392729047,1761877838326,-255.25995358,0.00015,2]
[392729048,1761877838335,-150.0,0.00015,2]
[392729049,1761877838346,-150.0,0.00015,2]
[392729050,1761877838355,-150.0,0.00015,2]
[392729051,1761877838364,-638029.69989391,0.00015,2]
[392729052,1761877838377,-14371.47451884,0.00015,2]
[392729075,1761877839445,-1165.38368025,0.00015,2]
[392729077,1761877839458,-877.00297971,0.00015,2]
[392729079,1761877839469,-1643.2770756,0.00015,2]
[392729089,1761877839552,-1093.0,0.00015,2]
[392729101,1761877839660,-351694.46734097,0.00015,2]
[392729107,1761877839769,-3527.39032816,0.00015,2]
[392729109,1761877839781,-1482082.05507778,0.00015,2]
[392729410,1761877845535,-6226.15257356,0.000147,2]
[392729411,1761877845589,-428.14468468,0.000147,2]
[392729418,1761878030173,150.99742374,0.00013444,7]
[392729429,1761878100865,159.21644155,0.00031506,120]
[392729437,1761878211175,445.96559884,0.00031506,120]
[392729438,1761878218155,-570.0,0.000209,30]
[392729439,1761878244516,10000.0,0.00031507,120]
[392729440,1761878249492,445.0,0.00031506,120]
[392729445,1761878258449,10000.0,0.00031507,120]
[392729448,1761878277794,10000.0,0.00031507,120]
[392729451,1761878388179,10000.0,0.00031507,120]
[392729452,1761878421849,8372.75,0.00031507,120]
[392729479,1761878711685,150.0,0.00013488,2]
[392729480,1761878711845,150.0,0.00013488,2]
[392729481,1761878711951,179.20538015,0.00013488,2]
[392729482,1761878962100,-204.24897499,0.00013689,2]
[392729483,1761878962124,-172.1,0.00013699,2]
[392729484,1761878962144,-166.00591281,0.00013706,2]
[392729485,1761878962164,-200.0,0.00013714,2]
[392729486,1761878962183,-250.0,0.00013725,2]
[392729487,1761878962203,-229.04,0.00013759,2]
[392729488,1761878962223,-504.1695122,0.00013789,2]
[392729489,1761878997468,300.0,0.00031507,120]
[392729490,1761879027609,-689.26833333,0.00013699,2]
[392729491,1761879030243,-206.20442002,0.00013699,2]
[392729509,1761879031654,-104.52724665,0.00013699,2]
[392729510,1761879031663,-300.0,0.00013789,2]
[392729512,1761879031673,-300.0,0.00013789,2]
[392729514,1761879031683,-300.0,0.00013789,2]
[392729516,1761879031692,-1200.0,0.00013789,2]
[392729518,1761879031701,-13750.5,0.0001379,2]
[392729519,1761879031710,-424.73,0.00013889,2]
[392729521,1761879031720,-256.21,0.00014071,2]
[392729523,1761879031730,-722.83,0.00014258,2]
[392729525,1761879031738,-166.61,0.00014298,2]
[392729527,1761879031747,-237.34,0.00014549,2]
[392729529,1761879031757,-204.24897499,0.00014599,2]
[392729531,1761879031766,-659.61046025,0.000146,2]
[392729533,1761879031775,-270.784,0.000146,2]
[392729534,1761879031784,-166.09250622,0.00014607,2]
[392729535,1761879031793,-470.54754328,0.00014607,2]
[392729536,1761879031802,-507.58994236,0.0001461,2]
[392729537,1761879031812,-470.54754326,0.0001464,2]
[392729538,1761879031821,-507.58994233,0.00014642,2]
[392729539,1761879031830,-150.0,0.00014672,2]
[392729540,1761879031839,-470.54754326,0.00014672,2]
[392729541,1761879031848,-500.28187991,0.00014673,2]
[392729542,1761879031857,-501.18621306,0.00014673,2]
[392729543,1761879031866,-500.0,0.00014673,2]
[392729544,1761879031876,-502.25275937,0.00014673,2]
[392729545,1761879031885,-500.0,0.00014673,2]
[392729547,1761879031895,-165.76452953,0.00014673,2]
[392729549,1761879031904,-500.0,0.00014673,2]
[392729551,1761879031913,-500.0,0.00014673,2]
[392729553,1761879031922,-164.29138499,0.00014673,2]
[392729555,1761879031931,-507.66202854,0.00014673,2]
[392729557,1761879031941,-500.0,0.00014673,2]
[392729559,1761879031950,-500.0,0.00014673,2]
[392729561,1761879031959,-501.88515027,0.00014673,2]
[392729563,1761879031967,-503.28443039,0.00014673,2]
[392729565,1761879031978,-500.63268969,0.00014673,2]
[392729567,1761879031986,-500.0,0.00014673,2]
[392729569,1761879031995,-301.34546881,0.00014673,2]
[392729571,1761879032004,-500.17803714,0.00014673,2]
[392729573,1761879032014,-506.36476924,0.00014673,2]
[392729575,1761879032022,-507.58994233,0.00014674,2]
[392729577,1761879032031,-201.30016778,0.00014689,2]
[392729579,1761879032040,-151.07363577,0.00014689,2]
[392729581,1761879032049,-151.97636768,0.00014689,2]
[392729583,1761879032058,-150.0,0.00014689,2]
[392729584,1761879032067,-150.0,0.00014689,2]
[392729586,1761879032076,-154.7977296,0.00014689,2]
[392729589,1761879032085,-150.46513121,0.00014689,2]
[392729591,1761879032095,-500.0,0.00014689,2]
[392729594,1761879032104,-300.0,0.00014689,2]
[392729598,1761879032115,-150.0,0.0001469,2]
[392729600,1761879032123,-258.30254003,0.0001469,2]
[392729602,1761879032132,-500.0,0.0001469,2]
[392729604,1761879032145,-500.0,0.0001469,2]
[392729605,1761879032154,-201.89328932,0.00014691,2]
[392729606,1761879032163,-196.15798716,0.00014691,2]
[392729607,1761879032172,-500.0,0.00014691,2]
[392729608,1761879032183,-151.0,0.00014691,2]
[392729609,1761879032192,-200.0,0.00014691,2]
[392729610,1761879032200,-151.0,0.00014691,2]
[392729611,1761879032209,-151.0,0.00014691,2]
[392729612,1761879032219,-151.0,0.00014691,2]
[392729613,1761879032228,-151.0,0.00014691,2]
[392729614,1761879032238,-151.0,0.00014691,2]
[392729615,1761879032248,-151.0,0.00014691,2]
[392729616,1761879032257,-2.68399589,0.00014691,2]
[392729617,1761879032320,-500.0,0.00014686,2]
[392729618,1761879032330,-425.7184434,0.00014686,2]
[392729619,1761879032357,-74.2815566,0.00014686,2]
[392729620,1761879032367,-500.0,0.00014686,2]
[392729621,1761879032376,-500.0,0.00014686,2]
[392729622,1761879032385,-148.31600411,0.00014691,2]
[392729623,1761879032395,-151.0,0.00014691,2]
[392729624,1761879032405,-151.0,0.00014691,2]
[392729625,1761879032414,-151.0,0.00014691,2]
[392729626,1761879032424,-151.0,0.00014691,2]
[392729627,1761879032433,-151.0,0.00014691,2]
[392729628,1761879032443,-151.0,0.00014691,2]
[392729629,1761879032452,-151.0,0.00014691,2]
[392729630,1761879032461,-151.0,0.00014691,2]
[392729631,1761879032470,-500.0,0.00014691,2]
[392729632,1761879032480,-151.0,0.00014691,2]
[392729633,1761879032489,-500.0,0.00014691,2]
[392729634,1761879032498,-151.0,0.00014691,2]
[392729635,1761879032508,-500.0,0.00014691,2]
[392729636,1761879032517,-151.0,0.00014691,2]
[392729637,1761879032527,-500.0,0.00014691,2]
[392729638,1761879032536,-151.0,0.00014691,2]
[392729639,1761879032546,-500.0,0.00014691,2]
[392729640,1761879032568,-224.86370059,0.00014691,2]
[392729641,1761879032586,-504.7716364,0.00014691,2]
[392729642,1761879032597,-151.0,0.00014691,2]
[392729643,1761879032607,-151.0,0.00014691,2]
[392729644,1761879032617,-200.0,0.00014691,2]
[392729645,1761879032626,-151.0,0.00014691,2]
[392729646,1761879032635,-151.0,0.00014691,2]
[392729647,1761879032645,-151.0,0.00014691,2]
[392729648,1761879032654,-151.0,0.00014691,2]
[392729649,1761879032664,-151.0,0.00014691,2]
[392729650,1761879032673,-151.0,0.00014691,2]
[392729651,1761879032682,-151.0,0.00014691,2]
[392729652,1761879032691,-151.0,0.00014691,2]
[392729653,1761879032701,-151.0,0.00014691,2]
[392729654,1761879032710,-151.0,0.00014691,2]
[392729655,1761879032720,-160.03852451,0.00014691,2]
[392729656,1761879032729,-151.0,0.00014691,2]
[392729657,1761879032739,-151.0,0.00014691,2]
[392729658,1761879032748,-151.0,0.00014691,2]
[392729659,1761879032757,-151.0,0.00014691,2]
[392729660,1761879032766,-151.0,0.00014691,2]
[392729661,1761879032775,-151.0,0.00014691,2]
[392729662,1761879032784,-151.0,0.00014691,2]
[392729663,1761879032793,-151.0,0.00014691,2]
[392729664,1761879032803,-208.99046891,0.00014691,2]
[392729665,1761879032812,-202.44182118,0.00014691,2]
[392729666,1761879032821,-9663.62787641,0.00014699,2]
[392729667,1761879032830,-153.07490092,0.00014699,2]
[392729668,1761879032839,-460.86717947,0.00014699,2]
[392729669,1761879032848,-180.84799288,0.00014699,2]
[392729670,1761879032857,-263403.57394581,0.000147,2]
[392729671,1761879032869,-52375.55934792,0.000147,2]
[392729672,1761879032879,-28862.62838698,0.000147,2]
[392729673,1761879032890,-42162.90306105,0.000147,2]
[392729674,1761879032899,-470.54754326,0.00014705,2]
[392729675,1761879032909,-507.58994233,0.00014707,2]
[392729676,1761879032918,-470.54754326,0.00014737,2]
[392729677,1761879032927,-507.58994233,0.00014739,2]
[392729678,1761879032936,-1092.0,0.00014756,2]
[392729679,1761879032945,-502.2695,0.00014767,2]
[392729680,1761879032955,-470.54754326,0.0001477,2]
[392729681,1761879032964,-507.58994233,0.00014771,2]
[392729682,1761879032974,-217.50414476,0.00014799,2]
[392729683,1761879032983,-500.0,0.00014799,2]
[392729684,1761879032992,-500.0,0.00014799,2]
[392729685,1761879033001,-500.0,0.00014799,2]
[392729686,1761879033010,-500.0,0.00014799,2]
[392729687,1761879033019,-500.0,0.00014799,2]
[392729688,1761879033029,-470.54754326,0.00014802,2]
[392729689,1761879033038,-507.58994233,0.00014803,2]
[392729690,1761879033047,-150.0,0.00014826,2]
[392729691,1761879033056,-150.0,0.00014826,2]
[392729692,1761879033065,-500.0,0.00014826,2]
[392729693,1761879033074,-300.0,0.00014826,2]
[392729694,1761879033084,-150.0,0.00014827,2]
[392729695,1761879033093,-500.0,0.00014827,2]
[392729696,1761879033103,-500.0,0.00014827,2]
[392729697,1761879033112,-500.0,0.00014828,2]
[392729698,1761879033121,-470.54754326,0.00014835,2]
[392729699,1761879033131,-507.58994233,0.00014836,2]
[392729700,1761879033141,-1177.67368,0.0001485,2]
[392729701,1761879033153,-470.54754326,0.00014867,2]
[392729702,1761879033162,-507.58994233,0.00014868,2]
[392729703,1761879033172,-172.1,0.00014885,2]
[392729704,1761879033182,-659.61046025,0.000149,2]
[392729705,1761879033191,-410.42617871,0.000149,2]
[392729706,1761879033200,-507.58994233,0.000149,2]
[392729707,1761879033210,-162.78490377,0.000149,2]
[392729708,1761879033220,-672.58328311,0.000149,2]
[392729709,1761879033230,-470.54754326,0.000149,2]
[392729710,1761879033239,-151.0,0.00014958,2]
[392729711,1761879033251,-151.0,0.00014959,2]
[392729712,1761879033261,-151.0,0.0001496,2]
[392729713,1761879033271,-151.0,0.0001496,2]
[392729714,1761879033281,-202.41757709,0.00014963,2]
[392729715,1761879033291,-211.77103381,0.00014963,2]
[392729716,1761879033301,-446.71694368,0.00014963,2]
[392729717,1761879033311,-300.0,0.00014963,2]
[392729718,1761879033321,-176.60529719,0.00014964,2]
[392729719,1761879033331,-500.0,0.00014964,2]
[392729720,1761879033341,-500.0,0.00014964,2]
[392729721,1761879033351,-500.0,0.00014965,2]
[392729722,1761879033360,-500.0,0.00014973,2]
[392729723,1761879033370,-312.1727886,0.00014973,2]
[392729724,1761879033379,-500.0,0.00014973,2]
[392729725,1761879033390,-500.0,0.00014973,2]
[392729726,1761879033400,-500.0,0.00014973,2]
[392729727,1761879033413,-500.75904731,0.00014973,2]
[392729728,1761879033422,-160.50909131,0.00014973,2]
[392729729,1761879033432,-161.03609932,0.00014973,2]
[392729730,1761879033441,-160.55901609,0.00014973,2]
[392729731,1761879033451,-509.23682617,0.00014973,2]
[392729732,1761879033460,-505.54299483,0.00014973,2]
[392729733,1761879033470,-500.0,0.00014973,2]
[392729734,1761879033480,-500.0,0.00014973,2]
[392729735,1761879033489,-327.76019208,0.00014973,2]
[392729736,1761879033499,-500.0,0.00014973,2]
[392729737,1761879033509,-500.0,0.00014973,2]
[392729738,1761879033518,-500.0,0.00014973,2]
[392729739,1761879033528,-176.82469572,0.00014973,2]
[392729740,1761879033537,-227.79245014,0.00014973,2]
[392729741,1761879033546,-500.0,0.00014973,2]
[392729742,1761879033556,-509.6404368,0.00014973,2]
[392729743,1761879033565,-500.41073257,0.00014973,2]
[392729744,1761879033575,-554.88394503,0.00014973,2]
[392729745,1761879033584,-500.95543813,0.00014973,2]
[392729746,1761879033593,-504.64166636,0.00014973,2]
[392729747,1761879033603,-500.0,0.00014973,2]
[392729748,1761879033612,-500.0,0.00014973,2]
[392729749,1761879033621,-500.0,0.00014973,2]
[392729750,1761879033631,-500.0,0.00014973,2]
[392729751,1761879033640,-500.0,0.00014973,2]
[392729752,1761879033649,-501.83517664,0.00014973,2]
[392729753,1761879033660,-502.34671415,0.00014973,2]
[392729754,1761879033669,-155.09476708,0.00014973,2]
[392729755,1761879033678,-500.96349431,0.00014973,2]
[392729756,1761879033687,-500.0,0.00014973,2]
[392729757,1761879033696,-164.34626945,0.00014973,2]
[392729758,1761879033705,-500.0,0.00014973,2]
[392729759,1761879033714,-995.55,0.00014973,2]
[392729760,1761879033723,-150.0,0.00014973,2]
[392729761,1761879033732,-150.0,0.00014973,2]
[392729762,1761879033741,-150.0,0.00014973,2]
[392729763,1761879033751,-153.67600953,0.00014973,2]
[392729764,1761879033760,-150.0,0.00014973,2]
[392729765,1761879033769,-151.51597064,0.00014973,2]
[392729766,1761879033778,-150.0,0.00014973,2]
[392729767,1761879033787,-215.51599856,0.00014973,2]
[392729768,1761879033798,-1177.67368,0.0001498,2]
[392729769,1761879033807,-513.19801458,0.00014985,2]
[392729770,1761879033816,-223.62383005,0.00014986,2]
[392729771,1761879033826,-286.46127766,0.00014986,2]
[392729772,1761879033841,-9178.14,0.0001499,2]
[392729773,1761879033859,-2787.243,0.0001499,2]
[392729774,1761879033869,-286.24627544,0.0001499,2]
[392729775,1761879033878,-746.03125987,0.0001499,2]
[392729776,1761879033887,-746.03125987,0.0001499,2]
[392729777,1761879033897,-746.03125987,0.0001499,2]
[392729778,1761879033907,-151.0,0.00014997,2]
[392729779,1761879033916,-500.0,0.00014998,2]
[392729780,1761879033925,-500.0,0.00014998,2]
[392729781,1761879033935,-500.0,0.00014998,2]
[392729782,1761879033944,-557.57094043,0.00014998,2]
[392729783,1761879033953,-500.0,0.00014999,2]
[392729784,1761879033962,-500.0,0.00014999,2]
[392729785,1761879033971,-500.0,0.00014999,2]
[392729786,1761879033980,-500.0,0.00014999,2]
[392729787,1761879033990,-189.02346334,0.00014999,2]
[392729788,1761879034000,-500.0,0.00014999,2]
[392729789,1761879034010,-500.0,0.00014999,2]
[392729790,1761879034019,-500.0,0.00014999,2]
[392729791,1761879034028,-500.0,0.00014999,2]
[392729792,1761879034037,-500.0,0.00014999,2]
[392729793,1761879034047,-184.66868516,0.00014999,2]
[392729794,1761879034056,-267.35698253,0.00014999,2]
[392729795,1761879034065,-500.0,0.00014999,2]
[392729796,1761879034074,-500.0,0.00014999,2]
[392729797,1761879034084,-670.84822584,0.00014999,2]
[392729798,1761879034093,-2385.0,0.00015,2]
[392729799,1761879034102,-204293.72211475,0.00015,2]
[392729800,1761879034807,-1254.41808677,0.00015,2]
[392729801,1761879034847,-454.62,0.00014686,2]
[392729804,1761879037586,-45.38,0.00014686,2]
[392729805,1761879037596,-500.0,0.00014686,2]
[392729806,1761879037606,-500.0,0.00014686,2]
[392729807,1761879037617,-500.0,0.00014686,2]
[392729808,1761879037626,-155.88458136,0.00014686,2]
[392729809,1761879037636,-500.0,0.00014686,2]
[392729810,1761879037646,-500.0,0.00014686,2]
[392729811,1761879037655,-500.0,0.00014686,2]
[392729812,1761879037666,-500.0,0.00014686,2]
[392729813,1761879037675,-500.0,0.00014686,2]
[392729814,1761879037685,-500.0,0.00014686,2]
[392729815,1761879037694,-500.0,0.00014686,2]
[392729816,1761879037704,-500.0,0.00014686,2]
[392729817,1761879037713,-500.0,0.00014686,2]
[392729818,1761879037724,-500.0,0.00014686,2]
[392729819,1761879037734,-500.0,0.00014686,2]
[392729820,1761879037743,-500.0,0.00014686,2]
[392729821,1761879037752,-500.0,0.00014686,2]
[392729822,1761879037761,-500.0,0.00014686,2]
[392729823,1761879037775,-3609365.96147921,0.00015,2]
[392729824,1761879037787,-14019.65022974,0.00015,2]
[392729825,1761879037798,-2923.88579416,0.00015,2]
[392730079,1761879040365,-1482082.05507778,0.00015,2]
[392730097,1761879040523,-7775.73302427,0.00015,2]
[392730202,1761879042954,-717700.56137095,0.00015,2]